bitfinex-derivatives/quotes_ETHF0:USTF0_20240920
["timestamp","ask_amount","ask_price","bid_price","bid_amount"]
[1726866113498,0.3939,2543.3,2543.1,0.39319]
[1726866113698,0.3939,2543.3,2543.0,3.3308]
[1726866114203,0.3939,2543.3,2543.1,0.39318]
[1726866114598,0.3939,2543.3,2543.1,0.3932]
[1726866116307,0.3939,2543.3,2543.2,0.39318]
[1726866118011,0.80274,2543.5,2543.2,1.81318]
[1726866118012,0.4096,2543.5,2543.2,1.81318]
[1726866118202,0.7903,2543.5,2543.3,0.39316]
[1726866118409,0.7903,2543.5,2543.3,0.77706]
[1726866118803,0.7903,2543.5,2543.3,0.3839]
[1726866118999,0.7903,2543.5,2543.3,0.77706]
[1726866119214,0.7903,2543.5,2543.3,0.3839]
[1726866119802,0.7903,2543.5,2543.3,0.77706]
[1726866120412,1.18343,2543.5,2543.3,0.3839]
[1726866121319,2.60343,2543.5,2543.3,0.3839]
[1726866121511,2.60343,2543.5,2543.3,0.77706]
[1726866121512,2.2103,2543.5,2543.3,0.77706]
[1726866121705,2.2103,2543.5,2543.3,0.3839]
[1726866121706,0.7903,2543.5,2543.3,0.3839]
[1726866122015,1.18343,2543.5,2543.3,0.3839]
[1726866122216,0.7903,2543.5,2543.3,0.3839]
[1726866122401,0.7903,2543.5,2543.3,0.77706]
[1726866122607,0.7903,2543.5,2543.3,0.3839]
[1726866123203,0.3807,2543.5,2543.3,0.3839]
[1726866123412,0.3807,2543.5,2543.4,1.17965]
[1726866124416,1.93663592,2543.6,2543.5,0.39313]
[1726866124711,1.53963592,2543.6,2543.5,1.81313]
[1726866125713,1.53963592,2543.7,2543.6,0.39312]
[1726866125912,2.84502919,2543.8,2543.6,0.39312]
[1726866126108,2.84502919,2543.8,2543.6,0.80482]
[1726866126609,2.84502919,2543.8,2543.6,0.4117]
[1726866126610,3.23811919,2543.8,2543.6,0.4117]
[1726866126813,2.84502919,2543.8,2543.6,0.4117]
[1726866127004,2.84502919,2543.8,2543.6,0.80481]
[1726866127706,2.06112919,2543.7,2543.6,0.80481]
[1726866127907,0.7839,2543.8,2543.6,0.80481]
[1726866127908,2.84502919,2543.8,2543.6,0.80481]
[1726866128308,2.06112919,2543.7,2543.6,0.80481]
[1726866130520,8.3144374,2543.7,2543.4,0.39314]
[1726866130724,2.5701274,2543.6,2543.4,0.39314]
[1726866131019,2.4634284,2543.5,2543.4,0.39314]
[1726866131221,0.7961,2543.5,2543.4,0.39314]
[1726866131426,2.85421931,2543.5,2543.3,3.60095]
[1726866131721,1.54360783,2543.4,2543.3,3.60095]
[1726866132514,1.54360783,2543.4,2543.3,0.39315]
[1726866133523,1.54360783,2543.4,2543.3,1.81315]
[1726866134322,2.85421931,2543.5,2543.4,0.39315]
[1726866134825,2.85421931,2543.5,2543.0,0.367]
[1726866134826,8.20621931,2543.5,2543.0,0.367]
[1726866135125,2.5701274,2543.3,2543.2,0.39317]
[1726866135325,2.9607274,2543.4,2543.2,0.39317]
[1726866136235,2.5701274,2543.3,2543.2,0.39317]
[1726866138021,0.3906,2543.4,2543.2,0.39317]
[1726866138022,2.9607274,2543.4,2543.2,0.39317]
[1726866138227,2.9607274,2543.4,2543.3,0.39317]
[1726866138519,2.9607274,2543.4,2543.2,0.39318]
[1726866138920,2.06035142,2543.3,2543.2,0.39318]
[1726866141424,2.06035142,2543.4,2543.3,0.39317]
[1726866141729,2.06035142,2543.5,2543.4,0.39315]
[1726866142123,2.06035142,2543.6,2543.5,0.39313]
[1726866142424,2.06002188,2543.6,2543.5,0.39313]
[1726866142618,2.05999531,2543.6,2543.5,0.39313]
[1726866146429,2.5701274,2543.6,2543.5,0.39313]
[1726866146828,3.3358274,2543.7,2543.5,0.39313]
[1726866147226,2.5701274,2543.6,2543.5,0.39313]
[1726866147433,2.5701274,2543.6,2543.4,0.39314]
[1726866148333,2.5701274,2543.6,2543.5,0.39313]
[1726866148523,3.3358274,2543.7,2543.6,0.39312]
[1726866149033,3.3358274,2543.7,2543.5,0.39312]
[1726866149326,3.3358274,2543.7,2543.6,0.39312]
[1726866149520,2.5701274,2543.7,2543.6,0.39312]
[1726866149929,0.3839,2543.8,2543.6,0.39312]
[1726866149930,2.9540274,2543.8,2543.6,0.39312]
[1726866152028,0.3839,2543.8,2543.6,0.39312]
[1726866153937,0.4095,2543.9,2543.8,0.39309]
[1726866156539,0.4095,2543.9,2543.8,0.79919]
[1726866157426,0.4053,2544.0,2543.8,0.4061]
[1726866157638,0.4034,2544.1,2543.9,3.60086]
[1726866157938,0.4034,2544.1,2544.0,0.39306]
[1726866158336,4.12367191,2544.3,2544.2,0.39303]
[1726866158640,4.12367191,2544.3,2544.2,6.67083]
[1726866159435,4.62917357,2544.5,2544.4,0.393]
[1726866159633,4.62917357,2544.5,2544.4,3.308]
[1726866159933,4.62917357,2544.5,2544.3,3.308]
[1726866160130,0.3824,2544.4,2544.3,3.30801]
[1726866160338,4.62917357,2544.5,2544.3,2.915]
[1726866160528,5.01157357,2544.5,2544.4,0.393]
[1726866160844,5.01157357,2544.5,2544.4,0.3864]
[1726866161041,5.01157357,2544.5,2544.4,0.7794]
[1726866161337,5.01157357,2544.5,2544.4,0.3864]
[1726866161530,5.01157357,2544.5,2544.4,0.7794]
[1726866161832,5.01157357,2544.5,2544.4,0.3864]
[1726866162037,0.3824,2544.5,2544.4,0.3864]
[1726866162239,1.92426035,2544.5,2544.4,0.3864]
[1726866162534,1.54186035,2544.5,2544.4,13.7798]
[1726866162731,2.94375545,2544.8,2544.7,0.39295]
[1726866162732,1.54186035,2544.8,2544.7,0.39295]
[1726866162932,1.54186035,2544.8,2544.4,13.3868]
[1726866162933,1.54186035,2544.8,2544.6,3.2078]
[1726866163236,1.54186035,2544.7,2544.6,0.39296]
[1726866163738,1.54186035,2544.7,2544.6,4.32256]
[1726866163943,1.54186035,2544.7,2544.6,0.39296]
[1726866164330,1.54186035,2544.8,2544.5,0.3867]
[1726866164544,1.92786035,2544.6,2544.4,3.3004]
[1726866164740,1.54186035,2544.5,2544.4,3.3004]
[1726866165035,0.375,2544.5,2544.2,2.914]
[1726866165237,1.91569703,2544.5,2544.2,2.914]
[1726866165634,1.54069703,2544.4,2544.2,2.914]
[1726866165830,0.3729,2544.3,2544.2,2.914]
[1726866166230,0.3729,2544.3,2544.1,0.78383]
[1726866166231,4.98359703,2544.3,2544.1,0.3908]
[1726866166536,1.92669703,2544.2,2544.1,0.3908]
[1726866167140,1.92669703,2544.2,2544.1,0.78384]
[1726866167529,0.386,2544.2,2544.1,0.78384]
[1726866169847,0.3729,2544.3,2544.2,0.39303]
[1726866170140,5.12349703,2544.5,2544.2,0.3917]
[1726866170141,0.7513,2544.5,2544.2,0.3917]
[1726866170439,1.54069703,2544.7,2544.2,3.4617]
[1726866170642,4.74849703,2544.8,2544.4,3.07]
[1726866170847,4.74849703,2544.8,2544.6,0.39296]
[1726866171030,4.74849703,2544.8,2544.5,0.39297]
[1726866171339,0.7767,2544.7,2544.5,0.39297]
[1726866171641,0.39292,2544.9,2544.6,3.60076]
[1726866171642,1.54069703,2544.9,2544.6,3.60076]
[1726866171837,0.3729,2544.8,2544.6,0.39296]
[1726866172737,0.3729,2544.8,2544.5,0.39297]
[1726866173136,0.3729,2544.8,2544.5,0.78857]
[1726866173638,3.4429,2544.8,2544.5,0.78857]
[1726866173837,3.4753,2544.7,2544.5,0.39297]
[1726866174239,0.4053,2544.7,2544.5,0.39297]
[1726866177539,0.4053,2544.7,2544.6,0.39296]
[1726866184359,0.7989,2544.9,2544.8,0.39293]
[1726866184553,0.7989,2544.9,2544.7,0.4011]
[1726866184753,0.7989,2544.9,2544.7,0.79404]
[1726866185056,0.7989,2544.9,2544.7,0.4011]
[1726866185258,3.8689,2544.9,2544.5,0.39297]
[1726866185467,6.2778,2544.7,2544.2,0.39302]
[1726866185664,0.39302,2544.3,2544.1,4.5154]
[1726866185955,1.20343,2544.2,2544.0,3.2078]
[1726866186263,1.57833,2544.2,2544.0,3.2078]
[1726866186449,1.57833,2544.2,2543.8,0.7766]
[1726866186647,1.57833,2544.2,2544.0,0.39305]
[1726866186858,1.1853,2544.2,2544.1,0.39304]
[1726866187061,1.1853,2544.2,2544.0,0.39305]
[1726866187461,1.54069703,2544.3,2544.1,3.07]
[1726866187670,1.54069703,2544.5,2544.2,4.0597]
[1726866187964,1.54069703,2544.5,2544.2,7.1297]
[1726866188161,0.7853,2544.6,2544.4,0.39299]
[1726866188463,1.159,2544.6,2544.4,0.39299]
[1726866190355,0.7486,2544.6,2544.4,0.39299]
[1726866190756,0.3737,2544.6,2544.5,0.39298]
[1726866190967,0.3737,2544.6,2544.4,0.39298]
[1726866191565,1.91439703,2544.6,2544.4,0.39298]
[1726866191770,1.91439703,2544.6,2544.5,0.39298]
[1726866191975,1.54069703,2544.7,2544.5,0.39298]
[1726866192372,1.54069703,2544.7,2544.6,1.1659]
[1726866192668,1.54069703,2544.7,2544.6,1.55886]
[1726866194575,1.54069703,2544.7,2544.6,5.48846]
[1726866195081,1.54069703,2545.0,2544.6,17.3733]
[1726866195269,1.54069703,2545.0,2544.8,0.39293]
[1726866195270,1.54069703,2544.9,2544.8,0.39293]
[1726866196171,1.54069703,2544.9,2544.7,2.907]
[1726866196475,2.43222436,2545.0,2544.7,3.29995]
[1726866196476,1.54069703,2544.8,2544.7,3.29995]
[1726866197181,1.54069703,2544.8,2544.6,4.76665]
[1726866197384,0.3898,2544.7,2544.6,7.67365]
[1726866197765,1.54069703,2544.8,2544.7,0.39295]
[1726866198489,1.93049703,2544.9,2544.7,0.39295]
[1726866199168,1.93049703,2544.9,2544.6,7.2807]
[1726866199383,1.93049703,2544.9,2544.7,0.39294]
[1726866199876,1.54069703,2544.8,2544.7,0.39294]
[1726866201678,1.9328635,2544.9,2544.8,0.39293]
[1726866201873,2.05652436,2545.0,2544.8,0.39293]
[1726866202082,2.44792436,2545.0,2544.8,0.39292]
[1726866202382,2.44792436,2545.0,2544.6,6.9037]
[1726866202574,2.44792436,2545.0,2544.8,0.39292]
[1726866203376,2.05652436,2544.9,2544.8,0.39292]
[1726866203774,0.3914,2545.0,2544.8,0.39292]
[1726866203775,2.44792436,2545.0,2544.8,0.39292]
[1726866204073,2.05652436,2544.9,2544.7,0.39295]
[1726866204576,2.05652436,2544.9,2544.8,0.39293]
[1726866206483,2.05652436,2544.9,2544.6,6.9037]
[1726866206676,1.54387176,2544.8,2544.7,0.39295]
[1726866213587,2.44792436,2545.0,2544.6,3.6959]
[1726866213588,2.05652436,2544.9,2544.8,0.39293]
[1726866216290,2.96205545,2545.0,2544.8,0.39293]
[1726866216689,2.05913243,2544.9,2544.8,0.39293]
[1726866217188,2.96205545,2545.0,2544.8,0.39293]
[1726866217593,2.05914047,2544.9,2544.8,0.39293]
[1726866218089,2.96205545,2545.0,2544.8,0.39293]
[1726866218287,2.05908624,2544.9,2544.8,0.39293]
[1726866218490,2.96205545,2545.0,2544.8,0.39293]
[1726866218991,2.05911857,2544.9,2544.8,0.39293]
[1726866219697,2.05907394,2544.9,2544.8,0.39293]
[1726866220189,2.96205545,2545.0,2544.8,0.39293]
[1726866220393,2.05908528,2544.9,2544.8,0.39293]
[1726866220690,2.96205545,2545.0,2544.8,0.39293]
[1726866221583,2.05910249,2544.9,2544.8,0.39293]
[1726866222277,2.05910249,2544.9,2544.7,0.39294]
[1726866222481,0.39301,2544.3,2544.2,5.15801719]
[1726866222678,4.61451926,2544.3,2544.1,3.60083]
[1726866222886,0.4025,2544.2,2544.1,3.60083]
[1726866223093,2.32611926,2544.2,2544.1,3.60083]
[1726866225690,2.32611926,2544.2,2544.0,0.39305]
[1726866225988,1.54417945,2544.1,2544.0,0.39305]
[1726866227794,2.32577945,2544.2,2544.0,0.39305]
[1726866228190,1.94667945,2544.2,2544.1,0.39304]
[1726866228494,0.4025,2544.2,2544.1,0.39304]
[1726866229290,1.92037945,2544.3,2544.1,0.39304]
[1726866229691,1.92037945,2544.3,2544.2,0.4051]
[1726866231197,1.94397945,2544.4,2544.3,0.39301]
[1726866231398,1.54417945,2544.5,2544.3,0.78771]
[1726866231611,1.54417945,2544.5,2544.3,1.19241]
[1726866231612,1.91637945,2544.5,2544.3,1.19241]
[1726866231896,1.54417945,2544.5,2544.4,0.393]
[1726866232093,1.54417945,2544.5,2544.3,0.7994]
[1726866233300,1.54417945,2544.5,2544.3,1.19241]
[1726866234292,1.54417945,2544.4,2544.3,1.19241]
[1726866234699,1.54417945,2544.4,2544.3,0.39301]
[1726866236796,1.54417945,2544.4,2544.2,0.79812]
[1726866237001,1.1772,2544.3,2544.2,0.79812]
[1726866237507,2.72137945,2544.3,2544.2,0.79812]
[1726866239007,1.1772,2544.3,2544.2,0.79812]
[1726866239210,0.7694,2544.3,2544.2,0.79812]
[1726866239912,0.3789,2544.3,2544.2,0.79812]
[1726866240101,2.35167945,2544.5,2544.3,0.39301]
[1726866240404,0.8075,2544.5,2544.4,0.4039]
[1726866240604,2.35167945,2544.5,2544.4,0.4039]
[1726866242404,2.35167945,2544.5,2544.4,0.7969]
[1726866242605,2.35167945,2544.5,2544.4,3.6117]
[1726866243711,0.8075,2544.5,2544.4,3.6117]
[1726866244119,2.35167945,2544.5,2544.4,3.6117]
[1726866244313,0.8075,2544.5,2544.4,3.6117]
[1726866244610,0.8075,2544.5,2544.4,4.0047]
[1726866244914,0.8075,2544.5,2544.4,3.6117]
[1726866245115,0.8075,2544.5,2544.4,4.0047]
[1726866245415,1.54417945,2544.7,2544.6,0.39296]
[1726866246106,2.67327945,2544.8,2544.6,0.39296]
[1726866246913,1.54417945,2544.7,2544.6,0.39296]
[1726866249714,1.54417945,2544.7,2544.6,3.29196]
[1726866253912,1.54417945,2544.7,2544.6,2.899]
[1726866254313,1.54417945,2544.7,2544.6,3.29196]
[1726866255124,3.18845901,2544.8,2544.6,3.29196]
[1726866255614,1.54371917,2544.7,2544.6,3.29196]
[1726866256314,3.18845901,2544.8,2544.6,3.29196]
[1726866256818,3.18845901,2544.8,2544.5,0.76627]
[1726866257022,1.54378251,2544.6,2544.5,3.29097]
[1726866259020,1.54378251,2544.7,2544.5,3.29097]
[1726866259422,1.54378251,2544.6,2544.5,3.29097]
[1726866260020,1.54378251,2544.7,2544.5,3.29097]
[1726866260220,3.18845901,2544.8,2544.6,0.39296]
[1726866260525,1.54394537,2544.7,2544.6,0.39296]
[1726866261223,1.54400393,2544.7,2544.6,0.39296]
[1726866261419,3.18845901,2544.8,2544.6,0.39296]
[1726866261823,1.54401116,2544.7,2544.6,0.39296]
[1726866262019,3.18845901,2544.8,2544.6,0.39296]
[1726866262527,1.54405889,2544.7,2544.6,0.39296]
[1726866263523,1.54405889,2544.7,2544.6,0.76866]
[1726866263722,1.54405889,2544.7,2544.6,4.69826]
[1726866264023,2.57419877,2545.0,2544.8,0.39293]
[1726866264024,1.54405889,2544.9,2544.8,0.39293]
[1726866264219,1.54405889,2545.0,2544.9,0.39292]
[1726866264423,1.54405889,2545.0,2544.7,3.2078]
[1726866264624,1.54381055,2545.0,2544.9,0.39292]
[1726866264924,1.54380241,2545.0,2544.9,0.39292]
[1726866265127,1.54379043,2545.0,2544.9,0.39292]
[1726866266824,2.05935901,2545.0,2544.9,0.39292]
[1726866267221,2.05935901,2545.1,2544.9,0.39292]
[1726866270423,1.54318329,2545.0,2544.9,0.39292]
[1726866270625,1.543211,2545.0,2544.9,0.39292]
[1726866270830,2.05935901,2545.1,2545.0,0.3929]
[1726866271134,2.82775901,2545.2,2545.1,0.39289]
[1726866271322,2.82775901,2545.2,2545.1,0.77389]
[1726866271521,0.7684,2545.2,2545.1,1.16979]
[1726866272035,2.31137182,2545.2,2545.1,1.16979]
[1726866272633,0.7684,2545.2,2545.1,1.16979]
[1726866284148,0.7684,2545.2,2545.0,6.4947]
[1726866284950,1.16127,2545.2,2545.0,6.4947]
[1726866285152,0.7684,2545.2,2545.0,6.4947]
[1726866285357,0.7684,2545.2,2545.1,0.39289]
[1726866287354,0.39291,2545.0,2544.7,3.5831]
[1726866287652,0.4102,2544.9,2544.7,0.39294]
[1726866287856,0.378,2544.8,2544.7,0.39294]
[1726866290451,0.378,2544.8,2544.6,6.49476]
[1726866291960,0.378,2544.8,2544.7,0.39295]
[1726866294765,0.3934,2544.9,2544.8,0.39293]
[1726866294963,0.98209,2545.5,2544.6,6.1018]
[1726866294964,0.78518,2545.2,2544.9,0.39291]
[1726866295161,2.95630948,2545.0,2544.9,0.39291]
[1726866295466,2.95630948,2545.0,2544.8,0.77563]
[1726866296663,2.95630948,2545.0,2544.9,0.392]
[1726866297157,2.57580948,2545.0,2544.9,4.71452]
[1726866297364,2.57580948,2545.0,2544.9,7.92232]
[1726866298656,2.57580948,2545.0,2544.9,3.99272]
[1726866298859,2.57580948,2545.0,2544.9,7.92232]
[1726866300256,1.54482592,2545.1,2544.9,13.92232]
[1726866300462,1.54482592,2545.2,2545.1,0.39289]
[1726866300663,1.54482592,2545.2,2545.1,7.21069]
[1726866300859,1.54482592,2545.3,2545.2,0.39287]
[1726866301066,2.4555044,2545.9,2545.3,1.37501]
[1726866301360,1.54285817,2546.0,2545.9,0.39276]
[1726866301557,1.54285817,2546.0,2545.9,5.33199355]
[1726866301761,4.362,2546.6,2545.9,3.2666]
[1726866301961,1.1542,2546.6,2546.0,4.23419355]
[1726866302262,1.1542,2546.6,2546.0,3.2078]
[1726866303673,1.1542,2546.6,2546.0,3.60055]
[1726866303971,0.3999,2546.6,2546.3,3.2078]
[1726866304156,0.3999,2546.6,2546.4,3.2909]
[1726866306766,0.7822,2547.1,2546.4,3.2909]
[1726866306969,0.4066,2547.0,2546.7,3.2078]
[1726866307561,3.2078,2547.5,2546.8,0.39262]
[1726866307762,4.3588,2547.5,2547.0,3.2078]
[1726866307961,4.3588,2547.5,2546.9,2.889]
[1726866308163,4.3588,2547.5,2547.0,3.2078]
[1726866308465,4.3588,2547.5,2547.0,3.6072]
[1726866308974,4.3588,2547.5,2547.0,2.888]
[1726866309168,4.31813,2547.4,2547.0,2.888]
[1726866309559,3.9256,2547.3,2547.0,2.888]
[1726866310067,3.9256,2547.2,2547.0,2.888]
[1726866310275,3.9264,2547.1,2547.0,2.888]
[1726866310567,3.9256,2547.4,2547.0,2.888]
[1726866310767,4.31814,2547.4,2547.0,2.888]
[1726866310972,3.9256,2547.3,2546.8,2.888]
[1726866311160,4.3588,2547.5,2546.8,2.888]
[1726866311365,4.3588,2547.5,2546.8,3.28062]
[1726866311573,4.75132,2547.5,2546.8,2.888]
[1726866311973,4.75132,2547.5,2546.8,3.28062]
[1726866312167,4.75132,2547.5,2546.8,2.888]
[1726866312368,4.3588,2547.5,2547.2,0.39255]
[1726866312663,4.3588,2547.5,2547.1,0.39257]
[1726866312863,4.3588,2547.5,2547.2,0.39256]
[1726866313172,1.151,2547.5,2547.3,3.2078]
[1726866313372,1.151,2547.5,2547.3,6.0958]
[1726866313564,1.151,2547.5,2547.0,3.2078]
[1726866313565,3.9256,2547.4,2547.0,3.2078]
[1726866313866,0.39256,2547.3,2547.0,3.2078]
[1726866314171,1.151,2547.5,2547.0,3.2078]
[1726866314172,0.39254,2547.4,2547.0,3.2078]
[1726866314360,3.9256,2547.4,2547.0,3.2078]
[1726866314565,7.52595,2547.3,2546.9,2.888]
[1726866314760,3.60035,2547.3,2546.9,2.888]
[1726866314960,3.60036,2547.3,2546.9,2.888]
[1726866315364,1.151,2547.5,2546.9,2.888]
[1726866315568,0.39254,2547.4,2546.9,2.888]
[1726866315865,3.2078,2547.4,2546.9,3.28061]
[1726866316068,1.151,2547.5,2547.0,3.2078]
[1726866316283,1.151,2547.5,2547.1,0.39257]
[1726866316763,1.151,2547.5,2547.0,3.5795]
[1726866316970,1.151,2547.5,2547.2,0.39256]
[1726866317270,1.151,2547.5,2547.0,3.5795]
[1726866317271,0.4066,2547.5,2547.3,3.2078]
[1726866317465,0.4066,2547.5,2547.4,2.887]
[1726866317772,0.4066,2547.5,2547.0,3.5795]
[1726866318075,0.4066,2547.5,2547.0,6.4665]
[1726866318660,0.4066,2547.5,2547.0,6.85908]
[1726866319070,0.8025,2547.8,2547.3,3.2078]
[1726866319373,0.8025,2547.8,2547.4,0.39253]
[1726866319374,1.1843,2547.8,2547.4,0.39253]
[1726866319566,1.1843,2547.8,2547.5,3.2786]
[1726866320164,1.1843,2547.8,2547.6,3.2078]
[1726866320364,0.3818,2547.8,2547.6,3.2078]
[1726866320564,0.3818,2547.8,2547.5,3.2786]
[1726866320769,3.2078,2548.5,2547.6,3.2078]
[1726866320967,0.7698,2548.4,2547.6,3.9685]
[1726866321273,0.7698,2548.4,2547.9,0.39244]
[1726866321466,0.7698,2548.4,2548.0,6.4864]
[1726866321769,0.7698,2548.4,2548.0,3.2786]
[1726866322068,0.3986,2548.6,2548.3,3.2078]
[1726866322269,0.3986,2548.6,2548.0,6.4864]
[1726866322464,0.3986,2548.6,2548.0,6.87883]
[1726866322666,0.3986,2548.6,2548.1,0.39242]
[1726866322880,0.3986,2548.6,2548.0,3.2078]
[1726866322881,0.39237,2548.5,2548.0,3.2078]
[1726866323067,3.98178,2548.4,2547.8,2.889]
[1726866323273,0.39239,2548.3,2547.8,2.889]
[1726866323768,3.9875,2548.4,2547.7,6.89328]
[1726866323970,3.9875,2548.4,2547.7,6.5008]
[1726866324275,4.37988,2548.4,2547.7,6.5008]
[1726866324471,0.3924,2548.3,2547.7,2.889]
[1726866324867,0.3924,2548.3,2547.6,0.3925]
[1726866325073,3.2078,2548.1,2547.7,2.889]
[1726866325268,0.3918,2548.0,2547.7,2.889]
[1726866325469,0.758,2547.9,2547.7,2.889]
[1726866326172,0.39236,2548.5,2547.8,0.39247]
[1726866326371,0.7533,2548.3,2547.8,0.39247]
[1726866326667,0.7533,2548.3,2547.7,3.28148]
[1726866327779,0.7533,2548.3,2547.8,2.889]
[1726866328074,1.1457,2548.3,2547.8,2.889]
[1726866328483,3.2078,2548.1,2547.8,2.889]
[1726866328673,3.2078,2548.2,2547.8,2.889]
[1726866328870,0.3953,2548.0,2547.8,2.889]
[1726866329279,0.3953,2548.0,2547.9,0.39246]
[1726866329483,0.7533,2548.3,2547.9,0.3975]
[1726866329687,0.3953,2548.2,2547.9,0.78995]
[1726866330188,0.3953,2548.2,2547.9,3.2865]
[1726866330378,0.3953,2548.2,2547.9,3.67895]
[1726866330683,0.3953,2548.2,2547.9,3.2865]
[1726866331081,0.3953,2548.2,2547.6,3.2078]
[1726866331282,0.3953,2548.2,2547.9,0.39245]
[1726866331585,0.3953,2548.2,2547.9,3.2078]
[1726866331782,0.3953,2548.2,2548.0,0.3961]
[1726866332294,0.3953,2548.2,2548.0,0.78853]
[1726866332485,0.3876,2548.5,2548.1,3.28142]
[1726866332682,0.3876,2548.5,2548.1,3.68052]
[1726866332979,0.7786,2548.6,2548.4,0.39238]
[1726866333282,0.39231,2548.9,2548.5,0.3961]
[1726866333483,0.7786,2548.9,2548.5,0.3961]
[1726866333678,1.17091,2548.9,2548.5,0.3961]
[1726866333984,0.7786,2548.9,2548.5,0.3961]
[1726866334685,1.17091,2548.9,2548.5,0.3961]
[1726866335086,0.39232,2548.8,2548.5,0.3961]
[1726866335588,4.37871,2548.9,2548.5,0.3961]
[1726866335787,0.39232,2548.8,2548.5,0.3961]
[1726866335980,4.37871,2548.9,2548.5,0.3961]
[1726866336180,0.39232,2548.8,2548.5,0.3961]
[1726866336586,3.9864,2548.9,2548.5,0.78846]
[1726866336784,0.7786,2548.9,2548.5,3.99626]
[1726866336989,1.1709,2548.9,2548.5,0.3961]
[1726866337188,0.7786,2548.9,2548.5,0.78846]
[1726866337388,1.1709,2548.9,2548.5,0.3961]
[1726866337590,0.7786,2548.9,2548.5,3.99626]
[1726866338192,0.7786,2548.9,2548.5,3.6039]
[1726866338491,0.7786,2548.9,2548.5,3.99626]
[1726866338682,0.7786,2548.9,2548.5,3.6039]
[1726866338878,0.7786,2548.9,2548.5,3.99626]
[1726866339086,0.7786,2548.9,2548.5,0.3961]
[1726866339287,0.7786,2548.9,2548.6,0.39234]
[1726866339590,0.7786,2548.9,2548.5,3.6039]
[1726866339789,0.3776,2548.9,2548.6,3.66794]
[1726866340090,0.3776,2548.9,2548.6,3.2756]
[1726866340592,0.3776,2548.9,2548.6,3.66794]
[1726866340792,0.3876,2549.0,2548.6,3.2756]
[1726866341086,0.3876,2549.0,2548.7,0.39232]
[1726866341396,0.8067,2549.1,2548.9,0.3923]
[1726866341590,0.8067,2549.1,2548.8,3.60011]
[1726866342092,0.4012,2549.4,2548.8,3.2078]
[1726866342294,0.4012,2549.4,2549.1,3.2078]
[1726866342683,0.4012,2549.4,2548.8,3.60011]
[1726866342981,0.4012,2549.4,2549.2,3.2078]
[1726866343189,0.4012,2549.4,2549.2,6.0958]
[1726866343381,0.4012,2549.4,2549.2,2.888]
[1726866346493,0.4012,2549.4,2549.2,3.28025]
[1726866346693,0.4012,2549.4,2549.2,2.888]
[1726866347392,0.4012,2549.4,2549.2,3.065]
[1726866347997,0.4012,2549.4,2549.2,3.45724]
[1726866348297,0.4012,2549.4,2549.2,3.45725]
[1726866348596,0.7957,2549.5,2549.2,3.45725]
[1726866348790,0.7957,2549.5,2549.2,3.065]
[1726866348984,0.3939,2549.7,2549.4,0.39222]
[1726866349190,0.3939,2549.7,2549.5,0.3842]
[1726866350392,0.7857,2549.9,2549.5,0.3842]
[1726866350896,0.7857,2549.9,2549.6,0.39219]
[1726866351401,0.7857,2549.9,2549.5,3.592]
[1726866351701,0.3983,2550.1,2549.8,3.2078]
[1726866351888,0.3983,2550.1,2549.9,3.065]
[1726866352682,0.3983,2550.1,2549.7,0.39217]
[1726866352884,0.3983,2550.1,2549.8,3.065]
[1726866353207,4.085,2550.7,2549.9,3.2078]
[1726866353393,4.085,2550.7,2549.7,12.59835932]
[1726866353394,0.7857,2550.3,2549.7,12.59835932]
[1726866353592,0.39214,2550.0,2549.6,6.6454]
[1726866354095,3.6099,2550.2,2549.6,6.6454]
[1726866354096,0.39212,2550.1,2549.6,6.6454]
[1726866354287,3.6099,2550.2,2549.6,6.6454]
[1726866354489,0.39214,2550.0,2549.6,3.5804]
[1726866354689,0.39212,2550.1,2549.6,3.065]
[1726866354891,3.2078,2549.9,2549.5,0.7764]
[1726866355094,0.7961,2549.8,2549.5,0.7764]
[1726866355293,1.1792,2549.8,2549.5,0.7764]
[1726866355496,1.1792,2549.8,2549.6,0.39219]
[1726866355693,1.1792,2549.8,2549.5,0.3842]
[1726866355896,1.1792,2549.8,2549.5,0.3922]
[1726866356303,4.387,2549.8,2549.5,0.3922]
[1726866356492,1.1792,2549.8,2549.5,0.3922]
[1726866356999,1.1792,2549.8,2549.4,0.3926]
[1726866357199,1.1792,2549.8,2549.3,3.065]
[1726866357700,1.1792,2549.8,2549.3,3.45724]
[1726866358298,1.1792,2549.8,2549.3,3.065]
[1726866358498,1.1792,2549.8,2549.3,3.45724]
[1726866360395,1.57137,2549.8,2549.3,3.065]
[1726866360591,5.1016,2549.8,2549.2,3.2078]
[1726866360797,5.1016,2549.8,2549.1,3.065]
[1726866360798,3.6,2549.6,2549.1,3.065]
[1726866361003,3.6,2549.6,2549.1,3.45727]
[1726866361403,3.2078,2549.6,2549.1,3.065]
[1726866361606,1.1792,2549.8,2549.3,3.2078]
[1726866361798,1.1792,2549.8,2549.4,1.15762]
[1726866362112,3.2078,2549.7,2549.4,0.377]
[1726866362704,1.1792,2549.8,2549.4,0.76922]
[1726866363005,1.57137,2549.8,2549.4,0.76922]
[1726866363212,4.77917,2549.8,2549.4,0.377]
[1726866363510,4.387,2549.8,2549.3,3.2078]
[1726866363693,0.39219,2549.7,2549.3,3.2078]
[1726866364098,0.39219,2549.7,2549.2,0.39225]
[1726866364505,0.39219,2549.7,2549.3,0.39224]
[1726866365211,3.60002,2549.5,2548.8,7.4468]
[1726866365397,0.39232,2548.8,2548.4,6.6814]
[1726866365601,0.39232,2548.8,2548.3,4.498]
[1726866365602,3.2078,2548.6,2547.9,10.4038]
[1726866365804,0.39237,2548.5,2548.1,0.76772]